Cogmind - Beta 13 @@@ ROGUE MODE // 2024.04.25 @ 01:07:19 Player: ThatBishHoly Result: Destroyed by as-22252 with Assembled Heavy Rifle Performance ------------- Evolutions (1) 500 Regions Visited (4) 800 Robots Destroyed (18) 90 Value Destroyed (331) 331 Prototype IDs (0) 0 Alien Tech Used (0) 0 Bonus (0) 0 TOTAL SCORE: 1721 Bonus ------- None Cogmind --------- Core Integrity 0/400 Matter 291/300 Energy 100/100 System Corruption 17% Temperature Cool (0) Movement Core (50) Location -9/Mines Parts ------- > --- POWER (1) -------- (None) > --- PROPULSION (3) --- (None) > --- UTILITY (3) ------ Terrain Scan Processor Power Shielding > --- WEAPON (2) ------- (None) > --- INVENTORY (5) ---- EM Pulse Gun Light Cannon Mining Laser Peak State ------------ > --- POWER ------------ Ion Engine > --- PROPULSION ------- Wheel Wheel Compact Wheel > --- UTILITY ---------- Huge Storage Unit Terrain Scanner Terrain Scan Processor > --- WEAPON ----------- Heavy EM Pulse Gun Grenade Launcher > --- INVENTORY -------- Wheel Power Shielding EM Pulse Gun Mining Laser [Rating: 11] Favorites ----------- Power Ion Engine Engine Ion Engine Propulsion Light Treads Treads Light Treads Wheel Wheel Utility Terrain Scanner Device Terrain Scanner Storage Huge Storage Unit Processor Terrain Scan Processor Protection Power Shielding Weapon Grenade Launcher Energy Gun EM Pulse Gun Ballistic Gun Assault Rifle Launcher Grenade Launcher Build | -11 -10 -10 -9 -9 ------- Run | Yrd Mat Min Mat Min Slots Evolved 2 | . . . 2 . Power . | . . . . . Propulsion 1 | . . . 1 . Utility 1 | . . . 1 . Weapon . | . . . . . Parts Attached 21 | 5 4 1 5 6 Power 1 | 1 . . . . Engine 1 | 1 . . . . Core . | . . . . . Reactor . | . . . . . Propulsion 7 | 2 . . 3 2 Treads 2 | 2 . . . . Leg . | . . . . . Wheel 5 | . . . 3 2 Hover . | . . . . . Flight . | . . . . . Utility 8 | . 3 1 1 3 Device 2 | . 1 . . 1 Storage 2 | . 1 1 . . Processor 2 | . . . 1 1 Hackware . | . . . . . Protection 2 | . 1 . . 1 Artifact . | . . . . . Weapon 5 | 2 1 . 1 1 Energy Gun 3 | 1 . . 1 1 Energy Cannon . | . . . . . Ballistic Gun 1 | 1 . . . . Ballistic Cannon . | . . . . . Launcher 1 | . 1 . . . Special Weapon . | . . . . . Impact Weapon . | . . . . . Slashing Weapon . | . . . . . Piercing Weapon . | . . . . . Special Melee Weapon . | . . . . . Unidentified Prototypes . | . . . . . Parts Lost 9 | . . . . 9 Power 1 | . . . . 1 Propulsion 3 | . . . . 3 Utility 3 | . . . . 3 Weapon 2 | . . . . 2 Highest Loss Streak 8 | . . . . 8 To Critical Strikes . | . . . . . Average Slot Usage (%) 82 | . 84 100 100 58 Engine 10 | . 14 14 11 5 Treads 15 | . 28 28 . . Wheel 10 | . . . 33 19 Device 7 | . . 14 11 5 Storage 9 | . 6 14 11 6 Processor 4 | . . . 11 7 Protection 1 | . 5 . . . Energy Gun 3 | . 2 . 10 6 Ballistic Gun 7 | . 14 14 . . Launcher 10 | . 11 14 11 5 Naked Turns 160 | . . . . 160 Heaviest Build 92 | 9 21 91 91 92 Greatest Support 40 | 40 40 40 36 36 Greatest Overweight (x) 5 | . . 2 2 5 Average Overweight (x) 1 | . . 1 2 . Largest Inventory Capacity 25 | 5 10 25 25 25 Average Capacity 17 | 5 7 24 25 16 Most Carried 9 | 5 8 9 7 5 Average Carried 4 | . 3 8 3 3 Final Capacity 25 | 5 10 25 25 5 Final Carried 8 | . 8 8 3 3 Class Distribution -------------------- 69% | Mutant 30% | Scavenger-Mutant Dominant Class ---------------- Mutant | -10/Materials Mutant | -10/Mines Scavenger-Mutant | -9/Materials Scavenger-Mutant | -9/Mines Resources | -11 -10 -10 -9 -9 ----------- Run | Yrd Mat Min Mat Min Matter Collected 525 | 188 159 31 95 52 Remotely . | . . . . . Salvage Created 443 | . 180 44 199 20 Parts 39 | . 26 2 11 . Haulers Intercepted . | . . . . . Recyclers Shooed . | . . . . . Parts Field Recycled . | . . . . . Retrieved Matter . | . . . . . Parts Self-Destructed . | . . . . . Prevented . | . . . . . Kills | -11 -10 -10 -9 -9 ------- Run | Yrd Mat Min Mat Min Combat Hostiles Destroyed 15 | . 7 2 3 3 Melee 1 | . . . . 1 Guns 7 | . 4 1 1 1 AOE 7 | . 3 1 2 1 Classes Destroyed 6 | . 5 . . 1 Worker 2 | . 2 . . . Builder 2 | . 1 . 1 . Recycler 2 | . 1 . 1 . Swarmer 6 | . 6 . . . Grunt 6 | . 1 2 3 . Assembled 3 | . . . . 3 Best Kill Streak 6 | . 6 2 4 2 Combat Bots Only 3 | . 3 2 2 2 Max Kills in Single Turn 6 | . 6 1 2 1 Gunslinging 1 | . 1 . . . Exploded 2 | . 2 1 2 1 Melee 1 | . . . . 1 Uniques/NPCs Destroyed . | . . . . . Combat | -11 -10 -10 -9 -9 -------- Run | Yrd Mat Min Mat Min Hostile Shots Fired 99 | . 18 8 7 66 Missed 34 | . 5 1 3 25 Damage Taken 1092 | . 181 137 69 705 Core 450 | . 12 29 28 381 Absorbed by Shields . | . . . . . Core Remaining (%) 91 | 100 . 83 . . Volleys Fired 24 | . 9 5 4 6 Largest 2 | . 2 2 2 1 Hottest 70 | . 70 50 70 45 Shots Fired 42 | . 18 10 8 6 Gun 27 | . 14 5 4 4 Cannon . | . . . . . Launcher 15 | . 4 5 4 2 Special . | . . . . . Kinetic 14 | . 9 5 . . Thermal 5 | . 5 . . . Explosive 15 | . 4 5 4 2 Electromagnetic 8 | . . . 4 4 Robot Hit Streak 6 | . 6 4 6 5 Robot Miss Streak 3 | . 3 1 1 1 Penetration Max . | . . . . . Secondary Targets 1 | . 1 . . . Max Gunslinging Chain 1 | . 1 . . . Shots Hit Robots 28 | . 10 7 6 5 Core Hits 35 | . 11 5 13 6 Critical Kills . | . . . . . Critical Parts Destroyed . | . . . . . Critical Strikes . | . . . . . Melee Attacks . | . . . . . Impact . | . . . . . Slashing . | . . . . . Piercing . | . . . . . Sneak Attacks . | . . . . . Combat Hostiles . | . . . . . Follow-up Attacks . | . . . . . Damage Inflicted 1301 | . 389 199 424 289 Guns 310 | . 137 66 55 52 Cannons . | . . . . . Explosions 963 | . 252 133 369 209 Melee . | . . . . . Ramming 28 | . . . . 28 Kinetic 166 | . 100 66 . . Thermal 37 | . 37 . . . Explosive 875 | . 252 133 281 209 Electromagnetic 195 | . . . 143 52 Impact . | . . . . . Slashing . | . . . . . Piercing . | . . . . . Highest Corruption 17 | . . . . 17 Average Corruption 13 | . . . . 13 Corruption Purged . | . . . . . Corruption Blocked . | . . . . . Effects 12 | . . . . 12 Message Errors 4 | . . . . 4 Matter Fused 1 | . . . . 1 Heat Flow Errors 1 | . . . . 1 Energy Discharges 1 | . . . . 1 Data Loss (minor) 4 | . . . . 4 Misdirections 1 | . . . . 1 Overload Shots . | . . . . . Overflow Damage 8 | . . . 3 5 Projectiles . | . . . . . Explosions 8 | . . . 3 5 Melee . | . . . . . Knockbacks . | . . . . . Impact . | . . . . . Kinetic . | . . . . . Secondary . | . . . . . Self-Inflicted Damage 213 | . 68 41 24 80 Shots 8 | . 3 2 1 2 Rammed 11 | . . . . 11 Targets Rammed 11 | . . . . 11 Kicked . | . . . . . Crushed . | . . . . . Highest Temperature 158 | . 27 6 12 158 Average Temperature 20 | . 12 2 8 88 Received Heat Transfer 110 | . 12 54 24 20 Siege Activations . | . . . . . Robots Corrupted . | . . . . . Combat Hostiles . | . . . . . Parts Fried . | . . . . . Impact Corruptions . | . . . . . Robots Melted . | . . . . . Combat Hostiles . | . . . . . Parts Melted . | . . . . . Heat Transferred 111 | . 111 . . . Parts Sabotaged . | . . . . . Parts Stolen . | . . . . . Parts Stripped . | . . . . . Power Chain Reactions . | . . . . . Alert | -11 -10 -10 -9 -9 ------- Run | Yrd Mat Min Mat Min Peak Influence 262 | . 262 112 141 54 Initial 54 | . . 24 . 54 Average 67 | . 128 81 34 29 Maximum Alert Level 1 | . 1 . . . Low Security (%) 94 | 100 78 100 100 100 Level 1 5 | . 21 . . . Level 2 . | . . . . . Level 3 . | . . . . . Level 4 . | . . . . . Level 5 . | . . . . . High Security . | . . . . . Max Security . | . . . . . Squads Dispatched 2 | . 1 . 1 . Investigation . | . . . . . Extermination . | . . . . . Reinforcement 2 | . 1 . 1 . Assault . | . . . . . Garrison . | . . . . . Intercept . | . . . . . Searches Triggered . | . . . . . Construction Impeded 1 | . . . 1 . Haulers Reinforced . | . . . . . Active Scanning Responses . | . . . . . Cargo Convoy Interrupts . | . . . . . Stealth | -11 -10 -10 -9 -9 --------- Run | Yrd Mat Min Mat Min Distress Signals 4 | . 1 . 1 2 Communications Jammed . | . . . . . Distress Signals . | . . . . . Times Spotted 44 | . 13 2 8 21 Peak Tracking Total 14 | . 5 2 4 14 Tactical Retreats 1 | . . . . 1 Traps | -11 -10 -10 -9 -9 ------- Run | Yrd Mat Min Mat Min Traps Triggered . | . . . . . Indirectly . | . . . . . Trap Hack Attempts . | . . . . . Triggered . | . . . . . Disarmed . | . . . . . Reprogrammed . | . . . . . Reused . | . . . . . Traps Extracted . | . . . . . Installed . | . . . . . Triggered 1 | . . 1 . . Machines | -11 -10 -10 -9 -9 ---------- Run | Yrd Mat Min Mat Min Machines Disabled 3 | . 1 . 2 . Max in Single Turn 1 | . 1 . 1 . Machines Repaired . | . . . . . Machines Dismantled . | . . . . . Machines Sabotaged . | . . . . . Overloaded Fab Kills . | . . . . . Hacking | -11 -10 -10 -9 -9 --------- Run | Yrd Mat Min Mat Min Machines Accessed 2 | . . . 2 . Terminals 1 | . . . 1 . Fabricators . | . . . . . Repair Stations . | . . . . . Recycling Units 1 | . . . 1 . Scanalyzers . | . . . . . Garrison Access . | . . . . . Total Hacks 3 | . . . 3 . Successful 1 | . . . 1 . Failed 2 | . . . 2 . Catastrophic . | . . . . . Database Lockouts . | . . . . . Manual 1 | . . . 1 . Terminals 2 | . . . 2 . Fabricators . | . . . . . Repair Stations . | . . . . . Recycling Units 1 | . . . 1 . Scanalyzers . | . . . . . Garrison Access . | . . . . . Terminal Hacks . | . . . . . Fabricator Hacks . | . . . . . Repair Station Hacks . | . . . . . Recycling Unit Hacks . | . . . . . Scanalyzer . | . . . . . Garrison Access Hacks . | . . . . . Unauthorized Hacks 1 | . . . 1 . Terminals . | . . . . . Fabricators . | . . . . . Repair Stations . | . . . . . Recycling Units 1 | . . . 1 . Reject 1 | . . . 1 . Scanalyzers . | . . . . . Garrison Access . | . . . . . Data Cores Recovered . | . . . . . Used . | . . . . . Hacking Detections 1 | . . . 1 . Full Trace Events . | . . . . . Feedback Events . | . . . . . Feedback Blocked . | . . . . . Robot Schematics Acquired . | . . . . . Robots Built . | . . . . . Authchips . | . . . . . Time . | . . . . . Total Robot Build Rating . | . . . . . Part Schematics Acquired . | . . . . . Parts Built . | . . . . . Authchips . | . . . . . Time . | . . . . . Total Part Build Rating . | . . . . . Parts Repaired . | . . . . . Time . | . . . . . Parts Recycled . | . . . . . Recycled Matter . | . . . . . Retrieved Matter . | . . . . . Retrieved Components . | . . . . . Parts Scanalyzed . | . . . . . Part Schematics Acquired . | . . . . . Parts Damaged . | . . . . . Bothacking | -11 -10 -10 -9 -9 ------------ Run | Yrd Mat Min Mat Min Used RIF Installer . | . . . . . Robots Hacked . | . . . . . Non-combat . | . . . . . Combat . | . . . . . Robot Hacks Applied . | . . . . . Relay Couplers Released . | . . . . . Fabnet Peak Effective % . | . . . . . Robots Rewired . | . . . . . Allies Hacked . | . . . . . Hacks Repelled . | . . . . . Allies | -11 -10 -10 -9 -9 -------- Run | Yrd Mat Min Mat Min Total Allies . | . . . . . Largest Group . | . . . . . Highest-Rated Group . | . . . . . Highest-Rated Ally . | . . . . . Total Orders . | . . . . . Ally Attacks . | . . . . . Total Damage . | . . . . . Kills . | . . . . . Allies Corrupted . | . . . . . Allies Melted . | . . . . . Intel | -11 -10 -10 -9 -9 ------- Run | Yrd Mat Min Mat Min Robot Analysis Total . | . . . . . Derelict Logs Recovered 2 | . . 1 . 1 Drone Launches . | . . . . . Drone Recoveries . | . . . . . Exploration | -11 -10 -10 -9 -9 ------------- Run | Yrd Mat Min Mat Min Turns Passed 1830 | 62 443 505 257 563 Spaces Moved 1080 | 43 245 156 189 447 Core 221 | 14 . . . 207 Treads 430 | 29 245 156 . . Legs . | . . . . . Wheels 429 | . . . 189 240 Hover . | . . . . . Flight . | . . . . . Fastest Speed 50 | 50 160 160 116 50 Average Speed 141 | 124 160 311 116 83 Slowest Speed 320 | 160 160 320 116 175 Overloaded Moves . | . . . . . Propulsion Burnouts . | . . . . . Robots Hopped . | . . . . . Cave-ins Triggered . | . . . . . Exploration Rate (%) 26 | 4 37 25 17 50 Regions Visited 4 Branch Regions 2 Pre-discovered Areas 2 | . . 2 . . Known Exits Taken . | . . . . . Unknown Exits Taken 4 | 1 1 1 1 . Scrap Searched 2 | . . 1 . 1 Spaces Dug . | . . . . . Terrain Destroyed 95 | . 23 39 20 13 Melee . | . . . . . Projectile . | . . . . . AOE 95 | . 23 39 20 13 Terrain Rammed . | . . . . . Walls Destroyed . | . . . . . Machines Disabled . | . . . . . Actions | -11 -10 -10 -9 -9 --------- Run | Yrd Mat Min Mat Min Total 1346 | 52 279 166 218 631 Wait 181 | . 6 3 18 154 Move 1076 | 42 244 155 188 447 Hop . | . . . . . Pick Up 23 | 5 13 1 . 4 Fast Attach 1 | . . . . 1 Attach 13 | 5 2 . 2 4 Detach . | . . . . . Swap 7 | . 2 1 3 1 Drop 10 | . 3 1 3 3 Fire 24 | . 9 5 4 6 Melee . | . . . . . Ram 11 | . . . . 11 Kick . | . . . . . Crush . | . . . . . Escape Stasis . | . . . . . Rewire . | . . . . . Trap . | . . . . . Miscellaneous . | . . . . . Route ------- -11/Scrapyard -10/Materials -10/Mines -9/Materials -9/Mines History --------- Turn | Location | Event 2 | -11/Scrapyard | Met Revision 17 3 | -11/Scrapyard | Discovered new exit (range 15) 63 | -11/Scrapyard | Entered Materials 328 | -10/Materials | Build established: Mutant 476 | -10/Materials | Discovered new exit (range 7) 506 | -10/Materials | Entered Mines 966 | -10/Mines | Discovered new exit (range 5) 976 | -10/Mines | Learned location of Storage (-9) 1011 | -10/Mines | Entered Materials 1011 | -9/Materials | Evolved 2 slots: Propulsion x1, Utility x1 1237 | -9/Materials | Discovered new exit (range 16) 1268 | -9/Materials | Entered Mines 1304 | -9/Mines | Build established: Scavenger-Mutant 1331 | -9/Mines | Met a Derelict bent on vengeance 1411 | -9/Mines | Found a hidden stash of uninstalled traps 1541 | -9/Mines | Assembled infested the area 1546 | -9/Mines | Assisted by a Guerilla fighting off Assembled 1580 | -9/Mines | System corruption reached 10% 1613 | -9/Mines | Lost 8 parts (1p3n2u2w) 1764 | -9/Mines | Core integrity fell below 50% 1783 | -9/Mines | Core integrity fell below 20% 1822 | -9/Mines | Learned Materials non-interactive machine intel 1831 | -9/Mines | Destroyed by as-22252 with Assembled Heavy Rifle Last Messages --------------- 01768_ Slammed into as-08270. 01768_ as-08270 destroyed. 01777_ Acquired Wheel. 01784_ System corrupted: Heat flow error (+186). 01799_ VPNNMWODR47ZP&T#LEPQZ#C01VTE 01802_ Acquired Lgt. Cannon. 01807_ Dropped Wheel. 01814_ 3NUBUU&ZVY8EHY&9,Q